[Event "1st Anfield Cup 2022"]
[Site "Kyiv"]
[Date "2022.09.24"]
[Round "1.6"]
[White "Shepelev, Igor"]
[Black "Grinev, Valeriy"]
[Result "0-1"]
[ECO "D93"]
[WhiteElo "2076"]
[BlackElo "2425"]
[Annotator "TA"]
[PlyCount "92"]
[EventDate "2022.09.20"]
[EventType "swiss"]
[EventCountry "UKR"]
[SourceTitle "playchess.com"]
[Source "ChessBase"]
[SourceQuality "1"]
[TimeControl "900+10"]

{[%evp 14,92,-30,-28,-24,-41,-25,-22,-28,-70,-37,-102,33,28,33,7,8,0,0,0,0,0,0,0,0,-95,-92,-92,-91,-96,-96,-94,-94,-100,-95,-153,-106,-110,-110,-117,-120,-120,-112,-158,-171,-157,-147,-208,-205,-260,-264,-264,-261,-248,-250,-286,-276,-331,-316,-668,-668,-665,-665,-657,-656,-604,-542,-631,-622,-1220,-1601,-1390,-1331,-1214,-1235,-1189,-1150,-2356,-1651,-1296,-850]} 1. d4 {[%emt 0:00:03]} Nf6 {[%emt 0:00:03]} 2. c4 {[%emt 0:00:02]} g6 {[%emt 0:00:05]} 3. Nc3 {[%emt 0:00:01]} d5 {[%emt 0:00:03]} 4. Nf3 {[%emt 0:00:18]} Bg7 {[%emt 0:00:07]} 5. Bf4 {[%emt 0:00:02]} O-O {[%emt 0:00:13]} 6. e3 {[%emt 0:00:09]} c5 {[%emt 0:00:10]} 7. Rc1 {[%emt 0:00:17]} cxd4 {[%emt 0:00:14]} 8. exd4 {[%emt 0:00:20]} Nc6 {[%emt 0:00:23] D93: Grünfeld: 4 Nf3 Bg7 5 Bf4 0-0 6 e3.} 9. Be2 {[%emt 0:00:10]} dxc4 {[%emt 0:00:03]} 10. Bxc4 {[%emt 0:00:01]} Bg4 {[%emt 0:00:14] The position is equal.} 11. O-O {[%emt 0:00:39] [#]} Rc8 $146 {[%emt 0:00:50][%cal Ba8c8,Bc8d8,Bd8d4][%mdl 32]} ({Predecessor:} 11... Nh5 12. Be3 Nxd4 13. Bxd4 Bxf3 14. Qxf3 Qxd4 15. Bd5 Qb4 16. Bxb7 Rab8 17. Bd5 Qxb2 18. Na4 {0-1 (52) Campusano Espinosa,Z (2154)-Polanco Nunez,Y (2184) Santo Domingo 2017}) 12. d5 {[%emt 0:00:47]} (12. Be2 $15) 12... e5 {[%emt 0:04:38]} (12... Nh5 $1 $17 13. Be3 Bxf3 14. gxf3 Nd4 15. Bxd4 Rxc4 16. Bxg7 Nxg7) 13. dxe6 $14 {[%emt 0:01:53]} fxe6 {[%emt 0:01:21]} ({Don't do} 13... Bxe6 14. Bxe6 Qxd1 15. Bxf7+ (15. Nxd1 fxe6 16. Nc3 Nd5 $11) 15... Rxf7 16. Rcxd1 $16 (16. Rfxd1 Ne4 $16)) 14. Qxd8 {[%emt 0:00:23]} Rcxd8 {[%emt 0:00:20]} 15. Ne5 {[%emt 0:03:56]} Rd4 {[%emt 0:01:06]} 16. Nxg4 {[%emt 0:00:24]} Rxc4 {[%emt 0:00:02]} 17. Nxf6+ {[%emt 0:01:24]} Bxf6 {[%emt 0:00:03]} 18. Bd2 {[%emt 0:02:11]} Nb4 {[%emt 0:01:56]} 19. b3 {[%emt 0:01:07] [#]} (19. Ne2 $11 Rxc1 20. Rxc1) 19... Rxc3 $1 $17 {[%emt 0:00:03] Black has more active pieces.} 20. Bxc3 {[%emt 0:00:16]} Nxa2 {[%emt 0:00:01]} 21. Bxf6 {[%emt 0:00:18]} Nxc1 {[%emt 0:00:03]} 22. Rxc1 {[%emt 0:02:02]} Rxf6 {[%emt 0:00:03][%mdl 4096] Endgame KR-KR} 23. f3 {[%emt 0:00:01]} e5 {[%emt 0:00:34]} 24. Kf2 {[%emt 0:00:15]} (24. Rc8+ $142 Kg7 25. Rc7+ Rf7 26. Rc8) 24... e4 {[%emt 0:00:23]} ({Black should play} 24... Rb6 25. Rc3 Kf7) 25. Rc8+ {[%emt 0:01:03]} Rf8 {[%emt 0:00:03]} 26. Rc7 {[%emt 0:00:45] [#]} ({Much weaker is} 26. Rxf8+ $6 Kxf8 27. fxe4 Ke7 $15) 26... Rf7 $1 {[%emt 0:00:02]} 27. Rc8+ {[%emt 0:00:07]} Kg7 {[%emt 0:00:02]} 28. Ke3 {[%emt 0:00:04]} (28. b4 $142) 28... exf3 {[%emt 0:00:02]} 29. gxf3 {[%emt 0:00:01]} Kf6 {[%emt 0:00:02]} 30. Rc5 {[%emt 0:00:08]} (30. h4 $17) 30... Ke6 $19 {[%emt 0:00:03]} 31. h4 {[%emt 0:00:26]} Kd6 {[%emt 0:00:02]} 32. b4 {[%emt 0:00:03]} Rf5 {[%emt 0:00:07] Prevents h5.} 33. Rc4 {[%emt 0:00:11]} a6 {[%emt 0:00:10]} 34. Ke4 {[%emt 0:00:20]} b6 {[%emt 0:00:17]} 35. Rd4+ {[%emt 0:00:12]} Kc6 {[%emt 0:00:03]} 36. Rd8 $2 {[%emt 0:00:12]} (36. Rc4+ Kb5 37. Rd4) 36... Rh5 {[%emt 0:00:04] Black is clearly winning.} 37. f4 {[%emt 0:00:20]} Rxh4 {[%emt 0:00:02]} 38. Ke5 {[%emt 0:00:00]} Rh5+ {[%emt 0:00:03]} 39. Ke4 {[%emt 0:00:16]} Kb5 {[%emt 0:00:02]} 40. Rd6 {[%emt 0:00:02]} Rh1 {[%emt 0:00:26]} 41. Ke5 {[%emt 0:00:18]} Re1+ {[%emt 0:00:03]} 42. Kf6 {[%emt 0:00:01]} Re4 {[%emt 0:00:02]} 43. Kg5 {[%emt 0:00:01]} Rxb4 {[%emt 0:00:07]} 44. Rd7 {[%emt 0:00:01]} h6+ {[%emt 0:00:02]} 45. Kg4 {[%emt 0:00:29]} g5 {[%emt 0:00:03]} 46. Rd5+ {[%emt 0:00:02]} Ka4 {[%emt 0:00:03] Weighted Error Value: White=0.42/Black=0.09 (flawless)} 0-1

[Event "1st Anfield Cup 2022"]
[Site "Kyiv"]
[Date "2022.09.24"]
[Round "2.2"]
[White "Oleynik, Alexander"]
[Black "Malakhatko, Vadim"]
[Result "0-1"]
[ECO "B23"]
[WhiteElo "2249"]
[BlackElo "2448"]
[Annotator "TA"]
[PlyCount "66"]
[EventDate "2022.09.20"]
[EventType "swiss"]
[EventCountry "UKR"]
[SourceTitle "playchess.com"]
[Source "ChessBase"]
[SourceQuality "1"]
[TimeControl "900+10"]

{[%evp 15,66,1,16,4,28,28,31,-18,0,0,2,0,3,-67,-75,-439,-435,-474,-478,-464,-477,-568,-364,-380,-302,-541,-539,-524,-497,-616,-653,-637,-625,-653,-649,-830,-839,-1009,-988,-922,-790,-1020,-1019,-1023,-1004,-1256,-1218,-1277,-1294,-2378,-2239,-1741,-1687]} 1. e4 {[%emt 0:00:01]} c5 {[%emt 0:00:03]} 2. Nc3 {[%emt 0:00:04]} e6 {[%emt 0:00:11]} 3. g3 {[%emt 0:00:22]} Nc6 {[%emt 0:00:03]} 4. Bg2 {[%emt 0:00:01]} g6 {[%emt 0:00:04]} 5. d3 {[%emt 0:00:01]} Bg7 {[%emt 0:00:02]} 6. Be3 {[%emt 0:00:06]} d6 {[%emt 0:00:12]} 7. Nge2 {[%emt 0:00:03]} Nd4 {[%emt 0:00:03]} 8. Qd2 {[%emt 0:00:16]} Qa5 {[%emt 0:00:08]} 9. h4 {[%emt 0:01:04] B26: Closed Sicilian: 3 g3, lines with early Be3.} h6 {[%emt 0:00:10] [#]} 10. a3 $146 {[%emt 0:00:24]} ({Predecessor:} 10. O-O Bd7 11. Nc1 Ne7 12. Nb3 Qc7 13. f4 f5 14. Qf2 Nec6 15. e5 O-O 16. Rae1 {0-1 (34) Kettner,J-Eising,J (2355) Germany 1986}) 10... Ne7 {[%emt 0:00:14][%cal Bg8e7,Be7c6,Bc6e5,Be5f3][%mdl 32]} 11. Nc1 {[%emt 0:01:08]} (11. Rb1 $14 {feels stronger.}) 11... Nec6 {[%emt 0:00:26]} 12. O-O {[%emt 0:00:21]} Ne5 {[%emt 0:00:23]} 13. f3 {[%emt 0:02:23]} h5 {[%emt 0:00:19]} 14. b4 {[%emt 0:00:57]} (14. Ra2 $11) 14... cxb4 $15 {[%emt 0:00:54] Black is much more active. The white rooks are badly placed.} 15. Bxd4 {[%emt 0:00:27][%mdl 8192]} (15. Nb1 $17 {nothing else works.}) 15... Nxf3+ $1 $19 {[%emt 0:00:33][%mdl 64] [#] Discovered Attack} ({Stronger than} 15... bxc3 16. Qe3 $11) 16. Rxf3 {[%emt 0:00:53]} Bxd4+ {[%emt 0:00:03][%mdl 64] Pin} 17. Kh2 {[%emt 0:00:11] And now Nb3 would win.} Bxc3 {[%emt 0:00:10]} 18. Qf4 {[%emt 0:00:41]} O-O {[%emt 0:00:16]} 19. Nb3 {[%emt 0:00:50]} Qe5 {[%emt 0:02:32]} 20. Qc1 {[%emt 0:00:25]} (20. Ra2 {was worth a try.}) 20... Bxa1 {[%emt 0:00:10] Black is clearly winning.} 21. Nxa1 {[%emt 0:00:03]} a5 {[%emt 0:00:17][%cal Ba7a5,Ba5a4][%mdl 32]} 22. Nb3 {[%emt 0:00:22]} a4 {[%emt 0:00:40]} 23. Nd2 {[%emt 0:00:31]} bxa3 {[%emt 0:00:19] [#] White must now prevent ...Qb2.} 24. Qxa3 {[%emt 0:00:06]} Qc5 {[%emt 0:00:06]} 25. Qa1 {[%emt 0:00:28]} e5 {[%emt 0:00:18]} 26. c3 {[%emt 0:00:15]} Bg4 {[%emt 0:00:26]} 27. d4 {[%emt 0:00:22]} Qc7 {[%emt 0:00:08]} 28. Re3 {[%emt 0:00:14]} a3 {[%emt 0:00:04]} 29. Qa2 {[%emt 0:00:45]} b5 {[%emt 0:01:07]} 30. Bf1 {[%emt 0:01:50]} Qb6 {[%emt 0:00:07]} 31. Rd3 {[%emt 0:01:19]} Be6 {[%emt 0:00:30]} 32. d5 {[%emt 0:00:58]} Qf2+ {[%emt 0:00:13]} 33. Bg2 {[%emt 0:00:08]} Bg4 {[%emt 0:00:02] White did not feel at home in the position after the opening.  Weighted Error Value: White=0.97/Black=0.27 (precise)} 0-1

[Event "1st Anfield Cup 2022"]
[Site "Kyiv"]
[Date "2022.09.24"]
[Round "2.3"]
[White "Bakhmatsky, Vladislav"]
[Black "Shishkin, Vadim"]
[Result "0-1"]
[ECO "D02"]
[WhiteElo "2468"]
[BlackElo "2417"]
[Annotator "TA"]
[PlyCount "62"]
[EventDate "2022.09.20"]
[EventType "swiss"]
[EventCountry "UKR"]
[SourceTitle "playchess.com"]
[Source "ChessBase"]
[SourceQuality "1"]
[TimeControl "900+10"]

{[%evp 11,62,0,0,0,0,0,0,0,10,13,13,0,0,0,0,0,0,0,0,0,0,-4,0,-56,-31,-27,-5,-97,-91,-130,-56,-56,-64,-81,-76,-83,-68,-78,-97,-136,-136,-183,-166,-245,-169,-318,-311,-691,-212,-297,-157,-708,-699]} 1. Nf3 {[%emt 0:00:03]} Nf6 {[%emt 0:00:04]} 2. d4 {[%emt 0:00:03]} d5 {[%emt 0:00:04]} 3. Bf4 {[%emt 0:00:01]} e6 {[%emt 0:00:15]} 4. e3 {[%emt 0:00:02]} Bd6 {[%emt 0:00:05]} 5. Ne5 {[%emt 0:00:18]} O-O {[%emt 0:00:33]} 6. Nd2 {[%emt 0:00:01]} c5 {[%emt 0:00:18]} 7. c3 {[%emt 0:00:04] D02: 1 d4 d5 2 Nf3 sidelines, including 2...Nf6 3 g3 and 2...Nf6 3 Bf4.} Nc6 {[%emt 0:00:32] 7...Qc7 is the hot move.} 8. Bd3 {[%emt 0:00:26]} Qc7 {[%emt 0:01:04][%cal Rc6e5]} 9. Ndf3 {[%emt 0:00:02] The position is equal.} cxd4 {[%emt 0:02:20]} 10. exd4 {[%emt 0:03:15]} Ng4 {[%emt 0:00:12][%cal Rg4e5]} 11. Bg3 {[%emt 0:11:10]} ({Of course not} 11. Bxh7+ Kxh7 12. Ng5+ Kg8 13. Qxg4 f6 14. Nxc6 e5 $17) 11... Ncxe5 {[%emt 0:02:17]} 12. dxe5 {[%emt 0:00:06]} Nxe5 {[%emt 0:00:09]} 13. Nxe5 {[%emt 0:00:03]} Bxe5 {[%emt 0:00:03] [#]} 14. Bxh7+ $146 {[%emt 0:00:02][%mdl 64] [#] Decoy} ({Predecessor:} 14. Qh5 f5 15. O-O Rf6 16. Bxe5 Qxe5 17. Rae1 Qf4 18. g3 Qd6 19. Qe8+ Rf8 20. Qh5 {0-1 (53) Divis,J (1536)-Dancak,S (1250) Valasska Bystrice 2019}) 14... Kxh7 {[%emt 0:00:02]} (14... Kh8 $2 15. Qh5 Rd8 16. Bc2+ (16. Qxe5 Qxe5+ 17. Bxe5 Kxh7 $11) 16... Kg8 17. Bxe5 $18) 15. Qh5+ {[%emt 0:00:01]} Kg8 {[%emt 0:00:02][%cal Oe5c3] Threatens to win with ...Bxc3+!} 16. Bxe5 {[%emt 0:00:02]} Qe7 {[%emt 0:00:28]} 17. O-O-O {[%emt 0:00:40]} (17. O-O $11) 17... f6 $15 {[%emt 0:00:20]} 18. Bg3 {[%emt 0:00:01]} Qf7 {[%emt 0:00:26]} (18... e5 {is more complex.} 19. f4 d4 20. cxd4 exf4 21. Bxf4 Qe4) 19. Qe2 {[%emt 0:00:27]} (19. Qxf7+ $11 {keeps the balance.} Kxf7 20. f4) 19... e5 $17 {[%emt 0:01:41][%cal Od5d4] aiming for ...d4!} 20. f4 {[%emt 0:00:02] [#]} exf4 {[%emt 0:00:22]} (20... d4 $1 $17 {White must now prevent ...Bf5.} 21. c4 Bf5 22. fxe5 d3) 21. Bxf4 $15 {[%emt 0:00:07]} Bf5 $36 {[%emt 0:00:04][%mdl 2048] Black is more active.} 22. Rhe1 {[%emt 0:00:30]} Rfe8 {[%emt 0:00:45] Prevents Qe7.} 23. Qb5 {[%emt 0:00:23]} Be4 {[%emt 0:00:28]} 24. Rd2 {[%emt 0:00:59]} Rac8 {[%emt 0:00:31]} 25. Qb3 {[%emt 0:00:19]} a6 {[%emt 0:00:43]} 26. Rde2 {[%emt 0:00:11]} (26. g4 $17 {was called for.}) 26... Rc4 $19 {[%emt 0:01:49]} 27. Be3 {[%emt 0:00:10]} (27. Qb6 {keeps fighting.}) 27... Rec8 {[%emt 0:00:34]} 28. Kd2 {[%emt 0:00:02]} (28. Qb6 $142) 28... b5 {[%emt 0:00:25]} 29. a3 $2 {[%emt 0:00:00]} (29. Bd4) 29... Qg6 $2 {[%emt 0:00:17]} (29... d4 30. Bg1 dxc3+ 31. Kc1 Bd3) 30. h3 {[%emt 0:00:19]} (30. g3 {is a better defense.}) 30... Qf7 {[%emt 0:00:13]} ({Stronger than} 30... Bxg2 31. Rg1 d4 32. Bxd4 Qg5+ 33. Kc2 Qf5+ 34. Kc1 $15) ({And not} 30... Bb1 31. Kc1 $19) (30... Qg3 $19 {...a5 is the strong threat.} 31. Kc1 Bg6) 31. g4 $2 {[%emt 0:00:04]} (31. Qd1 $17) 31... d4 {[%emt 0:00:20] Weighted Error Value: White=0.71/Black=0.36} 0-1

[Event "1st Anfield Cup 2022"]
[Site "Kyiv"]
[Date "2022.09.24"]
[Round "2.4"]
[White "Grebeniuk, Semen"]
[Black "Andreev, Eduard"]
[Result "1/2-1/2"]
[ECO "A46"]
[WhiteElo "2315"]
[BlackElo "2413"]
[Annotator "TA"]
[PlyCount "43"]
[EventDate "2022.09.20"]
[EventType "swiss"]
[EventCountry "UKR"]
[SourceTitle "playchess.com"]
[Source "ChessBase"]
[SourceQuality "1"]
[TimeControl "900+10"]

{[%evp 10,43,12,14,33,27,19,22,39,8,22,0,9,0,0,0,6,0,0,0,0,0,0,0,0,0,0,0,-3,0,0,-6,0,-8,0,-10]} 1. d4 {[%emt 0:00:02]} Nf6 {[%emt 0:00:02]} 2. Nf3 {[%emt 0:00:02]} e6 {[%emt 0:00:05]} 3. Bg5 {[%emt 0:00:02]} h6 {[%emt 0:00:10]} 4. Bxf6 {[%emt 0:00:15]} Qxf6 {[%emt 0:00:03]} 5. Nbd2 {[%emt 0:00:11]} d5 {[%emt 0:00:57]} 6. e4 {[%emt 0:00:23]} c5 {[%emt 0:00:37] A46: 1 d4 Nf6 2 Nf3 e6: Torre, London and Colle Systems.} 7. exd5 {[%emt 0:03:01]} exd5 {[%emt 0:00:16]} 8. Bb5+ {[%emt 0:00:20]} Nc6 {[%emt 0:00:19]} 9. O-O {[%emt 0:00:06] And now c4 would win.} Be7 {[%emt 0:00:52] The position is equal.} 10. c3 {[%emt 0:01:41]} cxd4 {[%emt 0:00:39]} 11. Nxd4 {[%emt 0:00:10]} O-O {[%emt 0:00:06] [#]} 12. N2f3 $146 {[%emt 0:01:00]} ({Predecessor:} 12. N2b3 Rd8 13. Qe2 Bd7 14. Rfe1 Bd6 15. Qf3 Qg5 16. g3 Bg4 17. Qe3 Nxd4 18. Nxd4 {½-½ (57) Nabaty,T (2564)-Roiz,M (2623) Acre 2013}) 12... Bg4 {[%emt 0:01:07]} 13. Qa4 {[%emt 0:00:19][%cal Rb5c6]} Nxd4 {[%emt 0:03:09]} 14. Nxd4 {[%emt 0:00:06]} a6 {[%emt 0:00:35]} 15. Bd3 {[%emt 0:01:45]} b5 {[%emt 0:01:48]} 16. Qb3 {[%emt 0:01:30]} Rad8 {[%emt 0:00:30]} 17. a4 {[%emt 0:00:27]} b4 {[%emt 0:00:17]} 18. h3 {[%emt 0:02:01]} Bc8 {[%emt 0:00:02]} 19. Rfe1 {[%emt 0:00:35]} Bc5 {[%emt 0:00:12]} 20. Rad1 {[%emt 0:00:18]} bxc3 {[%emt 0:01:52]} 21. bxc3 {[%emt 0:00:02]} g6 {[%emt 0:00:29]} 22. Bf1 {[%emt 0:00:22] An interesting draw.  Weighted Error Value: White=0.05 (flawless) /Black=0.05 (flawless)} 1/2-1/2

[Event "1st Anfield Cup 2022"]
[Site "Kyiv"]
[Date "2022.09.24"]
[Round "2.5"]
[White "Grinev, Valeriy"]
[Black "Mikhalsky, Vladimir"]
[Result "1-0"]
[ECO "A40"]
[WhiteElo "2425"]
[BlackElo "2269"]
[Annotator "TA"]
[PlyCount "135"]
[EventDate "2022.09.20"]
[EventType "swiss"]
[EventCountry "UKR"]
[SourceTitle "playchess.com"]
[Source "ChessBase"]
[SourceQuality "1"]
[TimeControl "900+10"]

{[%evp 19,135,81,87,87,87,69,82,46,44,4,70,0,-4,-3,-3,-2,-5,-5,-4,-3,100,72,81,91,94,0,283,293,256,240,339,280,940,256,270,270,233,267,264,273,291,272,252,246,234,247,372,372,372,372,372,372,375,341,482,477,496,475,528,491,1152,1086,889,941,788,616,918,404,1983,1891,1731,1667,8593,8387,8554,8021,7856,7679,6860,6623,6096,1611,4535,1042,6312,5985,5059,5034,29978,29979,29979,29980,29980,29981,29981,29982,29983,29984,29984,29983,29983,29984,29984,29985,29988,29988,29989,29987,29989,29988,29989,29990,29991,29991,29991,29992,29992,29993]} 1. d4 {[%emt 0:00:03]} g6 {[%emt 0:00:19]} 2. c4 {[%emt 0:00:02]} Bg7 {[%emt 0:00:01]} 3. e4 {[%emt 0:00:03]} d6 {[%emt 0:00:01]} 4. Nc3 {[%emt 0:00:03]} e5 {[%emt 0:00:05]} 5. Nge2 {[%emt 0:00:08]} Nc6 {[%emt 0:00:06]} 6. Be3 {[%emt 0:00:25]} Nf6 {[%emt 0:00:26]} 7. d5 {[%emt 0:00:16]} Ne7 {[%emt 0:00:02]} 8. f3 {[%emt 0:00:02]} O-O {[%emt 0:00:38]} 9. Qd2 {[%emt 0:00:19]} Nd7 {[%emt 0:00:17]} 10. g4 {[%emt 0:00:11]} f5 {[%emt 0:00:22]} 11. gxf5 {[%emt 0:00:11] E85: King's Indian: Sämisch: 6...e5.} gxf5 {[%emt 0:00:01]} 12. O-O-O {[%emt 0:00:26]} a6 {[%emt 0:00:27]} 13. Bh3 {[%emt 0:00:10] [#] White is better.} b5 $146 {[%emt 0:00:05]} ({Predecessor:} 13... Nf6 14. Rhg1 f4 15. Bxc8 Qxc8 16. Bf2 Qd7 17. c5 Rfd8 18. Rg2 Ng6 19. Rdg1 dxc5 20. Bxc5 {1-0 (34) Thorhallsson,S (2027)-Mitra,A (1769) Uppsala 2017}) 14. Rhg1 {[%emt 0:00:25]} Nb6 {[%emt 0:00:34]} (14... f4 $1 $11 15. Be6+ Kh8) 15. Bh6 {[%emt 0:03:46] White has more active pieces.} (15. Bxb6 $14 cxb6 16. Qg5 (16. cxb5 axb5 17. Qg5 Ng6 $16)) 15... Ng6 $11 {[%emt 0:00:08]} 16. Bxg7 {[%emt 0:00:03]} Kxg7 {[%emt 0:00:01]} 17. exf5 Bxf5 {[%emt 0:00:23]} 18. Bxf5 {[%emt 0:00:04]} Rxf5 {[%emt 0:00:05]} 19. Ng3 {[%emt 0:00:02]} Rf7 {[%emt 0:01:32]} (19... Rxf3 $11 {keeps the balance.} 20. cxb5 axb5) 20. Nh5+ $16 {[%emt 0:00:04]} (20. cxb5 $6 axb5 21. Kb1 Rxf3 $11) 20... Kh8 {[%emt 0:00:03]} 21. Qh6 $36 {[%emt 0:00:08][%mdl 2048] aiming for Rxg6. White has strong initiative.} (21. cxb5 Qf8 22. bxa6 Rxf3 $17) 21... Qg8 {[%emt 0:02:20]} 22. Rg3 {[%emt 0:00:49]} ({White should play} 22. c5 $16 Nc8 23. Ne4) 22... Nd7 {[%emt 0:00:03][%mdl 8192] Black is on the road to losing.} (22... Nxc4 $2 23. Rdg1 Qf8 24. Rxg6 $18) (22... Nc8 $1 $11) 23. Rdg1 {[%emt 0:00:10][%cal Rg3g6] Rxg6 is the strong threat.} (23. cxb5 axb5 24. Rdg1 (24. Nxb5 Rxa2 25. Kb1 Qa8 $15) 24... Ndf8 $16) 23... Ndf8 {[%emt 0:00:02]} 24. Ne4 {[%emt 0:03:06] And now Nef6 would win.} (24. cxb5 $6 axb5 25. f4 (25. Nxb5 Rxa2 26. Kc2 Ra5 $11) 25... Rf5 $16) 24... bxc4 {[%emt 0:00:16]} (24... Rf5 $142 25. f4 Rxh5 26. Qxh5 exf4) 25. Ng5 {[%emt 0:01:35]} ({But not} 25. Nef6 Rxf6 26. Nxf6 Qf7 $18) 25... c6 $2 {[%emt 0:02:12]} (25... Rf5 26. Ne6 Qf7) 26. Ne6 $2 {[%emt 0:02:24]} (26. Nxf7+ Qxf7 27. dxc6) 26... cxd5 $18 {[%emt 0:00:21]} 27. Nxf8 {[%emt 0:00:02][%mdl 64] [#] Remove Defender, Deflection} Qxf8 {[%emt 0:00:21]} 28. Rxg6 {[%emt 0:00:02] Threatening mate with Rg7. Really sharp!} Qxh6+ {[%emt 0:02:17]} 29. Rxh6 {[%emt 0:00:03]} Rd8 {[%emt 0:01:07]} 30. Rg3 {[%emt 0:02:53]} d4 {[%emt 0:00:16]} 31. Re6 {[%emt 0:00:05]} a5 {[%emt 0:00:51]} 32. a4 {[%emt 0:00:53]} Rf5 {[%emt 0:00:51]} (32... d3 $142 33. Nf6 Rdf8) 33. Nf6 {[%emt 0:00:03]} Rf8 {[%emt 0:01:24]} 34. Nd7 {[%emt 0:00:04]} Rg8 {[%emt 0:00:55]} 35. Rxd6 {[%emt 0:01:01]} Rxg3 {[%emt 0:01:02]} 36. hxg3 {[%emt 0:00:01]} Rxf3 {[%emt 0:00:04]} (36... Kg7 $142 37. Rd5 Rxf3 38. Nxe5 Rf1+ 39. Kd2 Rf2+ 40. Kd1 Rxb2 41. Rxd4 h5) 37. Nxe5 {[%emt 0:00:03][%mdl 4096] Endgame KRN-KR} Rf1+ {[%emt 0:00:19]} 38. Kd2 {[%emt 0:00:38]} Rf2+ {[%emt 0:00:14]} 39. Ke1 {[%emt 0:00:02]} Rxb2 {[%emt 0:00:10]} (39... Rc2 $142 40. Rxd4 Rxb2 41. Rxc4 Kg7) 40. Nxc4 {[%emt 0:00:02]} Rb4 {[%emt 0:00:14]} 41. Nxa5 {[%emt 0:00:16]} Rxa4 {[%emt 0:00:02]} 42. Nc6 {[%emt 0:00:01]} Ra3 {[%emt 0:00:32]} 43. Kf2 {[%emt 0:00:03]} d3 {[%emt 0:00:01]} (43... Ra6 $142 44. Kf3 d3 45. Rd8+ Kg7) 44. Ne5 {[%emt 0:00:03]} Ra2+ {[%emt 0:00:02]} 45. Kf3 {[%emt 0:00:06]} d2 {[%emt 0:00:02]} 46. Nc4 {[%emt 0:00:05]} Rc2 {[%emt 0:00:15]} 47. Nxd2 {[%emt 0:00:02]} Kg7 {[%emt 0:00:03]} 48. Ne4 {[%emt 0:00:03]} Ra2 {[%emt 0:00:02]} 49. Kf4 {[%emt 0:00:02]} Ra1 {[%emt 0:00:01]} 50. Rc6 {[%emt 0:00:17]} Ra5 {[%emt 0:00:06]} 51. Rc5 {[%emt 0:00:11]} Ra6 {[%emt 0:00:02]} 52. Kf5 {[%emt 0:00:02] White threatens Rc7+ and mate.} Ra7 {[%emt 0:00:07] Against Rc7+} 53. Ng5 {[%emt 0:00:07]} Rb7 {[%emt 0:00:27] [#]} 54. Rc7+ $3 {[%emt 0:00:08][%mdl 512] White mates.} Rxc7 {[%emt 0:00:26] KR-KN} 55. Ne6+ {[%emt 0:00:01]} Kh6 {[%emt 0:00:11]} 56. Nxc7 {[%emt 0:00:03] KN-KP} Kg7 {[%emt 0:00:04]} 57. Kg5 {[%emt 0:00:02]} Kf7 {[%emt 0:00:01]} 58. Kh6 Kg8 59. Nd5 {[%emt 0:00:10]} Kh8 {[%emt 0:00:02]} 60. g4 {[%emt 0:00:02][%cal Bg3g4,Bg4g5,Bg5g6,Bg6g7][%mdl 32]} Kg8 {[%emt 0:00:00]} 61. Nf6+ {[%emt 0:00:02]} Kh8 {[%emt 0:00:02]} 62. Nxh7 {[%emt 0:00:02]} Kg8 {[%emt 0:00:00]} 63. Nf6+ {[%emt 0:00:05]} Kh8 {[%emt 0:00:01]} 64. Ne4 {[%emt 0:00:01]} Kg8 {[%emt 0:00:01]} 65. g5 {[%emt 0:00:01]} Kh8 {[%emt 0:00:00]} 66. g6 {[%emt 0:00:02]} Kg8 {[%emt 0:00:01]} 67. g7 {[%emt 0:00:03]} Kf7 {[%emt 0:00:01]} 68. Kh7 {[%emt 0:00:01] Weighted Error Value: White=0.31/Black=0.40} 1-0